bitfinex/quotes_ETHUSD_20210701
["timestamp","ask_amount","ask_price","bid_price","bid_amount"]
[1625143586897,10.3753,2131.7,2130.6,3.5166229]
[1625143586996,10.3753,2131.7,2130.5,1.2948]
[1625143587143,10.3753,2131.7,2130.6,0.00628055]
[1625143587245,10.3753,2131.7,2130.7,0.14]
[1625143587337,10.3753,2131.7,2130.7,4.5779]
[1625143587441,10.3753,2131.7,2130.8,9.41712]
[1625143587594,10.3753,2131.7,2131.0,0.9507]
[1625143587846,10.1718,2131.9,2131.0,0.9507]
[1625143587940,9.3764,2132.3,2131.0,0.9507]
[1625143588488,7.0324,2132.0,2131.1,7.03233]
[1625143589091,7.0324,2132.0,2131.0,2.7013]
[1625143589693,7.0324,2132.0,2131.0,9.73391]
[1625143589790,7.0324,2132.0,2131.0,2.7013]
[1625143589888,7.0324,2132.0,2131.1,0.16]
[1625143590139,7.0324,2132.0,2131.0,2.7013]
[1625143590289,7.0324,2132.0,2130.8,9.37712]
[1625143590530,7.0324,2132.0,2130.5,22.9279355]
[1625143590879,22.0324,2132.0,2130.5,22.9279355]
[1625143591082,22.0324,2132.0,2130.6,7.04000055]
[1625143591538,46.33996455,2131.9,2130.6,0.00628055]
[1625143591640,15.0,2131.8,2130.6,0.00628055]
[1625143591739,0.18759916,2131.7,2130.1,9.9825]
[1625143591834,3.51828,2131.5,2130.1,9.9825]
[1625143591938,15.17226885,2131.4,2130.0,10.3467]
[1625143592332,0.17226885,2131.4,2130.0,10.3467]
[1625143592438,7.03715,2130.8,2130.0,10.3467]
[1625143592533,7.03715,2130.8,2129.9,7.03605]
[1625143592652,4.25280434,2130.8,2129.9,7.03605]
[1625143592751,4.25280434,2130.8,2130.1,0.08]
[1625143592946,7.55910434,2130.8,2129.7,0.37028689]
[1625143593448,15.11709719,2130.7,2129.7,0.37028689]
[1625143593550,7.03769,2130.3,2129.7,0.37028689]
[1625143593649,3.3063,2130.8,2129.7,0.37028689]
[1625143593899,3.3063,2130.8,2129.8,0.04]
[1625143594000,3.03490345,2130.8,2129.8,0.04]
[1625143594248,3.03490345,2130.8,2129.7,0.37028689]
[1625143594502,15.0,2130.7,2129.7,0.37028689]
[1625143594606,15.14382758,2130.7,2129.7,0.37028689]
[1625143594700,11.10587,2130.3,2129.7,0.37028689]
[1625143594897,14.93439842,2130.2,2129.7,0.37028689]
[1625143594997,18.45481842,2130.2,2129.7,0.37028689]
[1625143595094,46.33996455,2130.1,2129.7,0.37028689]
[1625143595347,3.52042,2130.2,2129.7,0.37028689]
[1625143595546,18.52042,2130.2,2129.7,0.37028689]
[1625143596054,7.04059,2130.0,2129.7,0.37028689]
[1625143597550,9.38613,2130.4,2129.7,0.37028689]
[1625143597875,46.33996455,2130.6,2129.7,0.37028689]
[1625143598523,7.03825,2130.2,2129.7,0.37028689]
[1625143599015,22.03825,2130.2,2129.7,0.37028689]
[1625143599413,46.33996455,2130.1,2129.7,0.37028689]
[1625143599514,15.0,2130.0,2129.7,0.37028689]
[1625143599608,19.2473,2130.0,2129.7,0.37028689]
[1625143599811,7.04083,2129.9,2129.7,0.37028689]
[1625143602036,15.0,2129.9,2129.7,0.37028689]
[1625143602136,46.33996455,2130.2,2129.7,0.37028689]
[1625143602338,6.02693,2130.8,2129.7,0.37028689]
[1625143602339,7.04083,2129.9,2129.7,0.37028689]
[1625143602438,46.33996455,2130.7,2129.7,0.37028689]
[1625143602639,15.0,2130.6,2129.7,0.37028689]
[1625143604152,7.03867,2130.1,2129.7,0.37028689]
[1625143604352,15.0,2130.6,2129.7,0.37028689]
[1625143604451,11.73285,2130.8,2129.7,0.37028689]
[1625143604557,26.73285,2130.8,2129.7,0.37028689]
[1625143605409,49.67856455,2130.7,2129.7,0.37028689]
[1625143605505,7.03915,2130.2,2129.7,0.37028689]
[1625143606144,22.03915,2130.2,2129.7,0.37028689]
[1625143606198,7.03915,2130.2,2129.7,0.37028689]
[1625143607808,4.25406753,2130.2,2129.7,0.37028689]
[1625143608794,19.25406753,2130.2,2129.7,0.37028689]
[1625143609093,4.25406753,2130.2,2129.7,0.37028689]
[1625143610298,4.25406753,2130.2,2128.6,5.5428844]
[1625143610401,0.13787585,2130.1,2128.8,0.0222929]
[1625143610506,68.83976628,2130.1,2128.8,0.0222929]
[1625143610688,20.0,2129.7,2128.8,0.0222929]
[1625143610761,25.0,2129.6,2128.8,0.0222929]
[1625143610863,0.12478192,2129.5,2128.8,0.0222929]
[1625143610964,53.55189043,2129.5,2128.8,0.0222929]
[1625143611067,15.27284527,2129.4,2128.8,0.0222929]
[1625143611212,15.27122408,2129.4,2128.8,0.0222929]
[1625143611319,11.62148,2129.1,2128.8,0.0222929]
[1625143611467,61.48996455,2129.0,2128.8,0.0222929]
[1625143611616,14.88555051,2128.9,2128.8,0.0222929]
[1625143611763,29.88555051,2128.9,2128.8,0.0222929]
[1625143611864,30.03555051,2128.9,2128.8,0.0222929]
[1625143612363,20.03555051,2128.9,2128.8,0.0222929]
[1625143612466,20.03555051,2128.9,2127.5,0.00974912]
[1625143612467,7.0243871,2128.7,2127.5,0.00974912]
[1625143612567,7.0243871,2128.7,2128.2,0.02229984]
[1625143612568,15.0,2128.6,2128.2,0.02229984]
[1625143612951,49.86354455,2128.5,2128.2,0.02229984]
[1625143613042,15.0,2128.4,2128.2,0.02229984]
[1625143613394,46.33996455,2128.3,2128.2,0.02229984]
[1625143613498,61.33996455,2128.3,2128.2,0.02229984]
[1625143613745,24.39607,2128.3,2128.2,0.02229984]
[1625143613843,9.39607,2128.3,2128.2,0.02229984]
[1625143614058,7.04686,2128.5,2128.2,0.02229984]
[1625143614745,7.0422,2128.8,2128.2,0.02229984]
[1625143617077,0.0118741,2128.9,2128.2,2.26272226]
[1625143617274,0.0118741,2128.9,2128.3,0.12]
[1625143617629,0.0118741,2128.9,2128.4,2.24042242]
[1625143618440,0.0118741,2128.9,2128.3,0.12]
[1625143618536,0.0118741,2128.9,2128.2,0.02229984]
[1625143620136,7.0539841,2128.9,2128.2,0.02229984]
[1625143620236,61.33996455,2128.8,2128.2,0.02229984]
[1625143620384,65.29436455,2128.8,2128.2,0.02229984]
[1625143620782,65.29436455,2128.8,2127.6,2.24042242]
[1625143620939,65.29436455,2128.8,2127.5,0.00974912]
[1625143620940,65.29436455,2128.8,2127.7,0.02229895]
[1625143620941,3.66136252,2128.7,2127.7,0.02229895]
[1625143621088,61.33996455,2128.6,2127.0,9.94594807]
[1625143621185,7.04719,2127.8,2126.7,21.0594]
[1625143621286,26.49919,2127.8,2126.7,21.0594]
[1625143621437,26.49919,2127.8,2126.7,10.6113]
[1625143621537,0.1536213,2127.7,2126.7,10.6113]
[1625143621784,0.1536213,2127.7,2126.2,10.8408]
[1625143621944,0.1536213,2127.7,2126.8,0.1]
[1625143622085,0.1536213,2127.7,2126.2,10.8408]
[1625143622430,7.0475,2127.2,2126.0,9.43790242]
[1625143622630,0.07739487,2127.2,2126.0,9.43790242]
[1625143622733,0.07739487,2127.2,2126.5,7.2981]
[1625143622881,1.13734441,2127.3,2126.5,7.2981]
[1625143623085,1.13734441,2127.3,2126.6,0.06]
[1625143623384,1.13734441,2127.3,2126.5,9.53852242]
[1625143623490,7.04784,2127.1,2126.5,9.53852242]
[1625143624035,1.13734441,2127.3,2126.5,9.53852242]
[1625143624483,1.13734441,2127.3,2126.5,16.58483242]
[1625143624639,21.3817,2128.4,2126.5,16.58483242]
[1625143624640,9.39625,2127.9,2126.6,0.16]
[1625143624786,22.26106,2128.2,2126.6,0.16]
[1625143624884,22.26106,2128.2,2126.7,0.15]
[1625143625035,21.2317,2128.4,2126.8,0.16]
[1625143625133,0.00758983,2128.6,2126.8,0.16]
[1625143625233,0.00758983,2128.6,2126.9,0.15]
[1625143625332,0.00758983,2128.6,2126.9,0.1]
[1625143625435,0.00758983,2128.6,2126.9,2.50026779]
[1625143625736,7.04328,2128.5,2127.5,7.0431]
[1625143625833,7.04328,2128.5,2127.5,10.7928]
[1625143625983,7.04328,2128.5,2127.6,0.04]
[1625143626088,7.04328,2128.5,2127.6,2.40026779]
[1625143626547,10.1001,2128.7,2127.6,2.40026779]
[1625143626650,21.80784,2129.0,2127.6,2.40026779]
[1625143626749,11.74204,2129.0,2127.6,2.40026779]
[1625143627251,7.04265,2128.8,2127.6,9.44309779]
[1625143627501,26.74035,2129.3,2127.7,0.06]
[1625143627601,11.74035,2129.3,2127.7,0.06]
[1625143627879,11.74035,2129.3,2127.8,2.40026779]
[1625143628274,7.04176,2129.0,2128.0,7.04151]
[1625143628375,11.74035,2129.3,2128.0,4.1784]
[1625143628577,0.51937177,2129.6,2128.0,4.1784]
[1625143628733,0.51937177,2129.6,2128.1,6.36804572]
[1625143628819,21.5013,2129.7,2128.1,6.36804572]
[1625143628820,22.02067177,2129.7,2128.1,6.36804572]
[1625143629270,10.94727177,2129.7,2128.1,6.36804572]
[1625143629823,10.94727177,2129.7,2128.3,9.38649]
[1625143630073,10.94727177,2129.7,2128.4,2.70260112]
[1625143631217,10.94727177,2129.7,2128.6,10.83227]
[1625143631218,17.98677177,2129.7,2128.6,10.83227]
[1625143631318,7.55887177,2129.7,2128.6,10.83227]
[1625143631418,0.51937177,2129.8,2128.7,0.04]
[1625143631525,0.51937177,2129.8,2128.7,2.64260112]
[1625143632219,0.51937177,2129.8,2128.8,2.0]
[1625143632419,1.00468,2129.9,2128.8,2.0]
[1625143632722,1.00468,2129.9,2128.8,4.0]
[1625143632819,7.03932,2129.8,2128.8,4.0]
[1625143633767,7.03932,2129.8,2128.8,4.03411599]
[1625143634019,7.03932,2129.8,2128.9,2.68260112]
[1625143634267,7.03932,2129.8,2128.9,2.60260112]
[1625143634825,0.51937177,2130.1,2128.9,7.48960112]
[1625143634926,0.02223771,2130.5,2128.9,7.48960112]
[1625143635023,0.02223771,2130.5,2129.0,0.05425297]
[1625143635133,0.02223771,2130.5,2129.2,0.03705892]
[1625143635227,0.02223771,2130.5,2129.6,11.26133]
[1625143635326,0.02223771,2130.5,2129.6,4.2255]
[1625143635482,0.02223771,2130.5,2129.7,0.06]
[1625143635927,0.02223771,2130.5,2129.7,2.79924295]
[1625143636129,0.02223771,2130.5,2129.8,2.0]
[1625143636278,0.02223771,2130.5,2129.8,2.2]
[1625143636476,0.02223771,2130.5,2129.9,7.23558]
[1625143636577,0.02223771,2130.5,2129.9,9.97482295]
[1625143637028,0.02223771,2130.5,2129.9,2.93924295]
[1625143637181,0.02223771,2130.5,2129.8,2.0]
[1625143637182,0.02223771,2130.5,2129.1,33.62613295]
[1625143637328,0.02223771,2130.5,2129.4,4.0]
[1625143637432,0.02223771,2130.5,2129.2,0.00916223]
[1625143637528,7.06055771,2130.5,2129.2,0.00916223]
[1625143637717,15.0,2130.4,2129.2,0.00916223]
[1625143637782,61.33996455,2130.4,2129.2,0.00916223]
[1625143637873,61.33996455,2130.4,2128.9,10.6951]
[1625143637975,61.33996455,2130.4,2128.8,0.03411599]
[1625143637976,0.11613701,2130.3,2128.8,0.03411599]
[1625143638177,61.33996455,2130.4,2128.8,0.03411599]
[1625143638178,15.0,2130.4,2128.8,0.03411599]
[1625143638325,0.1307281,2130.1,2128.8,0.03411599]
[1625143638422,15.1307281,2130.1,2128.8,0.03411599]
[1625143638728,7.04168,2129.5,2128.8,0.03411599]
[1625143638876,15.0,2129.4,2128.8,0.03411599]
[1625143640690,46.33996455,2129.3,2128.8,0.03411599]
[1625143640788,15.0,2129.2,2128.8,0.03411599]
[1625143641137,22.04235,2129.2,2128.8,0.03411599]
[1625143642225,22.04235,2129.2,2128.8,1.599e-05]
[1625143642327,22.04235,2129.2,2127.6,0.51937177]
[1625143642430,0.29131924,2129.1,2127.6,0.51937177]
[1625143642579,46.63128379,2129.1,2127.6,0.51937177]
[1625143642675,0.28250744,2128.9,2127.6,0.51937177]
[1625143642922,0.28250744,2128.9,2127.1,11.0408]
[1625143643169,0.28250744,2128.9,2127.1,13.0408]
[1625143643327,0.28250744,2128.9,2127.1,13.78004295]
[1625143643421,9.39343,2128.5,2127.1,13.78004295]
[1625143643521,15.19643302,2128.4,2127.1,2.73924295]
[1625143643622,61.53639757,2128.4,2127.1,2.73924295]
[1625143643723,61.54339773,2128.4,2127.1,2.73924295]
[1625143644119,58.75585787,2128.4,2127.1,2.73924295]
[1625143645181,0.15245377,2128.1,2127.1,2.73924295]
[1625143646767,46.33996455,2128.4,2127.1,9.78477295]
[1625143646963,9.3943,2128.6,2127.2,0.06]
[1625143647066,55.73426455,2128.6,2127.2,0.06]
[1625143647214,46.33996455,2128.6,2127.2,0.06]
[1625143647313,46.33996455,2128.6,2127.3,2.73924295]
[1625143647415,46.33996455,2128.6,2127.3,9.76924295]
[1625143647519,10.1729,2129.0,2127.3,9.76924295]
[1625143647623,21.6701,2129.2,2128.1,7.04231]
[1625143647624,28.71285,2129.2,2128.1,7.04231]
[1625143647717,28.71285,2129.2,2128.1,11.16831]
[1625143647718,21.6701,2129.2,2128.1,11.16831]
[1625143647916,31.4643,2129.7,2128.1,11.16831]
[1625143648021,72.00336455,2130.0,2128.2,2.73924295]
[1625143648115,72.00336455,2130.0,2128.2,2.74660215]
[1625143648368,72.00336455,2130.0,2128.2,2.73924295]
[1625143648816,72.00336455,2130.0,2128.2,2.74586572]
[1625143649065,72.00336455,2130.0,2128.4,7.04111]
[1625143649162,72.00336455,2130.0,2128.4,0.00696778]
[1625143649261,57.00336455,2130.0,2128.4,0.00696778]
[1625143649362,57.00336455,2130.0,2128.2,2.75604938]
[1625143649466,57.00336455,2130.0,2128.4,2.73924295]
[1625143649566,46.33996455,2130.0,2128.4,2.74622947]
[1625143649665,41.7049,2130.4,2128.4,2.74622947]
[1625143649815,41.7049,2130.4,2128.7,4.8165269]
[1625143649963,41.7049,2130.4,2128.9,0.01849966]
[1625143649964,21.2254,2130.4,2128.9,0.01849966]
[1625143650063,21.2254,2130.4,2128.9,0.02611629]
[1625143650064,10.4805,2130.4,2128.9,0.02611629]
[1625143650175,10.4805,2130.4,2128.9,1.67411629]
[1625143650266,10.4805,2130.4,2128.9,1.65561663]
[1625143650368,17.51916,2130.4,2129.0,7.03927]
[1625143650464,32.51916,2130.4,2129.0,7.03927]
[1625143650867,17.51916,2130.4,2129.0,7.03927]
[1625143651674,17.51916,2130.4,2129.0,9.77851295]
[1625143651979,17.51916,2130.4,2129.0,2.73924295]
[1625143652228,46.33996455,2130.3,2128.9,1.648]
[1625143652427,15.0,2130.2,2128.4,9.3875]
[1625143652975,0.10101495,2130.1,2128.4,9.3875]
[1625143653076,15.0,2130.2,2128.4,9.3875]
[1625143653866,9.38874,2129.7,2128.2,2.73924295]
[1625143654015,61.33996455,2129.6,2128.2,2.73924295]
[1625143654215,0.10182563,2129.5,2128.2,2.73924295]
[1625143654413,61.33996455,2129.6,2128.2,2.73924295]
[1625143654613,0.10459372,2129.5,2128.2,2.73924295]
[1625143655065,61.33996455,2129.6,2128.2,2.73924295]
[1625143655168,7.04269,2129.2,2128.2,2.73924295]
[1625143655370,7.04269,2129.2,2128.3,0.08]
[1625143656416,7.04269,2129.2,2128.2,2.73924295]
[1625143656513,9.39036,2129.3,2128.2,9.78106295]
[1625143656614,61.33996455,2129.6,2128.2,9.78106295]
[1625143658173,7.04213,2129.3,2128.2,9.78106295]
[1625143658624,9.38893,2129.6,2128.2,12.89650358]
[1625143658723,61.33996455,2130.0,2128.2,12.89650358]
[1625143658724,61.33996455,2130.0,2128.2,5.84704295]
[1625143658828,61.33996455,2130.0,2128.3,0.06]
[1625143659275,61.33996455,2130.0,2128.4,2.73924295]
[1625143659376,7.04063,2129.7,2128.6,7.04063]
[1625143659726,7.04063,2129.7,2128.7,6.48674295]
[1625143660882,31.91219744,2129.7,2127.8,2.73263669]
[1625143660976,115.49462469,2129.6,2127.9,2.0]
[1625143661118,15.0,2129.3,2127.4,10.0585]
[1625143661266,19.72201365,2129.2,2127.4,10.0585]
[1625143661369,66.0619782,2129.2,2127.4,10.0585]
[1625143661469,7.04554,2129.0,2127.4,10.0585]
[1625143661570,0.23417246,2128.8,2127.3,10.2851]
[1625143661669,0.23417246,2128.8,2127.1,10.8019]
[1625143661768,56.33996455,2128.7,2127.1,10.8019]
[1625143661871,7.04685,2127.9,2127.1,10.8019]
[1625143661968,11.95435,2127.9,2126.9,6.95]
[1625143662318,11.95435,2127.9,2127.0,0.01105621]
[1625143662419,9.16645704,2127.9,2127.0,0.01105621]
[1625143663014,4.9075,2127.9,2127.0,0.01105621]
[1625143663164,21.8287,2128.7,2127.1,0.2]
[1625143663266,21.8287,2128.7,2127.1,6.04328268]
[1625143663466,21.8287,2128.7,2127.2,0.12]
[1625143663767,21.8287,2128.7,2127.3,2.38098268]
[1625143664215,21.8287,2128.7,2127.8,7.04224]
[1625143664368,7.04276,2128.8,2127.8,10.20704]
[1625143664369,7.03170379,2128.8,2127.8,10.20704]
[1625143664566,11.74407,2129.0,2127.9,0.2]
[1625143664667,0.00672209,2129.2,2127.9,0.2]
[1625143664969,0.00672209,2129.2,2127.9,2.58098268]
[1625143665070,0.00672209,2129.2,2127.9,2.38098268]
[1625143665175,0.00672209,2129.2,2127.8,3.1648]
[1625143665274,7.04332,2128.7,2127.8,3.1648]
[1625143666320,7.04332,2128.7,2127.8,9.3438]
[1625143667763,9.39068,2129.0,2127.8,9.3438]
[1625143667966,7.04215,2128.9,2127.9,0.04]
[1625143668064,11.74151,2129.3,2127.9,0.04]
[1625143668212,11.74151,2129.3,2128.0,0.04]
[1625143668314,11.74151,2129.3,2128.0,2.42098268]
[1625143668614,11.74151,2129.3,2128.0,2.38098268]
[1625143669538,7.04131,2129.1,2128.0,2.38098268]
[1625143669638,11.74151,2129.3,2128.0,2.38098268]
[1625143669789,10.6221,2129.5,2129.1,0.11742175]
[1625143669893,66.34291455,2129.7,2129.1,4.37772175]
[1625143670040,9.38875,2129.7,2129.1,4.37772175]
[1625143670239,11.73591,2130.1,2129.1,4.37772175]
[1625143670590,7.03936,2129.8,2129.1,4.37772175]
[1625143671795,10.0592,2130.2,2129.1,4.37772175]
[1625143672394,25.0592,2130.2,2129.1,4.37772175]
[1625143672496,25.0592,2130.2,2129.1,3.30492175]
[1625143672597,3.52043,2129.9,2129.1,3.30492175]
[1625143673010,18.52043,2129.9,2129.1,3.30492175]
[1625143673106,3.52043,2129.9,2129.1,3.30492175]
[1625143673206,7.04112,2129.6,2129.1,3.30492175]
[1625143674001,7.04112,2129.6,2129.2,0.1]
[1625143674102,7.04112,2129.6,2129.1,0.11742175]
[1625143674604,22.04112,2129.6,2129.1,0.11742175]
[1625143674857,46.33996455,2129.5,2129.1,0.11742175]
[1625143674954,46.33996455,2129.5,2129.1,0.06742175]
[1625143674955,15.0,2129.4,2129.1,0.06742175]
[1625143675055,3.52147,2129.3,2129.1,0.06742175]
[1625143675158,18.52147,2129.3,2129.1,0.06742175]
[1625143675303,18.52147,2129.3,2127.8,6.179]
[1625143675304,0.14893632,2129.2,2127.8,6.179]
[1625143675956,0.14893632,2129.2,2127.9,0.06]
[1625143676097,7.04317,2128.6,2127.9,0.06]
[1625143676247,7.04317,2128.6,2127.8,6.179]
[1625143676948,0.14893632,2129.2,2127.8,6.179]
[1625143677047,3.52147,2129.3,2127.8,8.55998268]
[1625143677849,3.52147,2129.3,2127.9,0.04]
[1625143678099,7.0424,2128.9,2128.1,7.04176]
[1625143678652,10.2559,2129.4,2128.1,9.42274268]
[1625143678847,10.2559,2129.4,2128.2,0.2]
[1625143679047,10.2559,2129.4,2128.3,0.12]
[1625143679148,7.04129,2129.2,2128.2,7.04122]
[1625143679246,7.04129,2129.2,2128.3,2.38098268]
[1625143682155,7.04129,2129.2,2127.8,6.179]
[1625143682156,22.04129,2129.2,2127.8,6.179]
[1625143682255,0.2,2129.1,2127.5,9.33098268]
[1625143682400,0.2,2129.1,2127.5,2.38098268]
[1625143682401,46.71564186,2129.1,2127.5,2.38098268]
[1625143682498,15.0,2129.0,2127.6,2.0]
[1625143682598,0.23758533,2128.9,2127.6,2.0]
[1625143682705,0.23758533,2128.9,2127.3,10.9534]
[1625143682863,0.24309934,2128.7,2127.3,10.9534]
[1625143683012,46.33996455,2128.6,2127.3,10.9534]
[1625143683109,61.33996455,2128.6,2127.3,10.9534]
[1625143683209,0.22049943,2128.5,2127.3,10.9534]
[1625143683311,14.18681,2128.0,2127.0,10.0459]
[1625143683409,0.11568334,2127.9,2127.0,10.0459]
[1625143683613,0.11568334,2127.9,2126.8,24.77075268]
[1625143683774,1.1513,2128.1,2127.1,2.38098268]
[1625143683862,9.39439,2128.4,2127.1,6.30278268]
[1625143683962,0.16078038,2128.7,2127.1,6.30278268]
[1625143684061,0.16078038,2128.7,2127.2,0.06]
[1625143684220,0.16078038,2128.7,2127.1,6.30278268]
[1625143684313,9.39253,2128.4,2127.2,9.39174]
[1625143684463,9.39253,2128.4,2127.1,3.9218]
[1625143685352,9.39253,2128.4,2127.1,6.30278268]
[1625143685701,9.39253,2128.4,2127.2,0.06]
[1625143685809,7.0441,2128.3,2127.5,7.04354]
[1625143685905,9.39253,2128.4,2127.5,7.04354]
[1625143686002,9.39286,2128.7,2127.3,9.39139]
[1625143686353,9.39286,2128.7,2127.4,2.38098268]
[1625143686603,14.01838,2129.0,2127.4,9.33098268]
[1625143686953,9.3908,2128.8,2127.4,9.33098268]
[1625143687252,9.3908,2128.8,2127.4,2.38098268]
[1625143687390,9.3908,2128.8,2127.4,8.55998268]
[1625143688314,7.04442,2128.2,2127.4,15.60404268]
[1625143688462,7.04442,2128.2,2127.4,8.55998268]
[1625143692144,7.04442,2128.2,2127.4,15.60380268]
[1625143692247,7.04442,2128.2,2127.4,8.55998268]
[1625143693903,4.25690288,2128.2,2127.4,8.55998268]
[1625143695952,4.25690288,2128.2,2127.4,8.86568268]
[1625143699095,4.25690288,2128.2,2127.4,15.90976268]
[1625143699245,9.39208,2128.5,2127.4,15.90976268]
[1625143699649,9.39208,2128.5,2127.4,15.91642401]
[1625143699746,9.39208,2128.5,2127.4,8.86568268]
[1625143700249,7.04364,2128.4,2127.6,7.04344]
[1625143701808,7.04305,2128.6,2127.6,7.04344]
[1625143702609,10.0673,2129.0,2127.7,0.03002056]
[1625143702710,11.74184,2129.1,2127.7,0.04674358]
[1625143702807,11.74184,2129.1,2127.7,1.55824358]
[1625143703212,11.74184,2129.1,2127.7,3.93922626]
[1625143704110,7.04224,2128.8,2128.1,7.04201]
[1625143704507,11.74184,2129.1,2128.1,7.04201]
[1625143705436,11.74184,2129.1,2128.1,13.22101]
[1625143705737,7.04213,2128.8,2128.1,13.22101]
[1625143705838,7.04213,2128.8,2128.1,13.25513706]
[1625143707598,15.25962,2129.6,2128.1,8.21372706]
[1625143707701,11.73855,2129.6,2128.1,10.6077768]
[1625143707803,10.1586,2129.7,2128.2,0.27406666]
[1625143707901,11.73719,2129.9,2128.2,0.27406666]
[1625143708150,11.73719,2129.9,2128.3,2.53181777]
[1625143708251,11.73719,2129.9,2128.4,0.03555254]
[1625143708658,7.03957,2129.8,2129.0,7.03957]
[1625143708750,7.03957,2129.8,2129.0,11.02117]
[1625143708856,13.83338,2130.1,2129.0,3.9816]
[1625143708952,3.51988,2130.1,2129.0,3.9816]
[1625143710149,7.03957,2129.8,2129.0,11.02117]
[1625143711396,7.03957,2129.8,2129.1,0.03411378]
[1625143713194,3.51988,2130.1,2129.1,0.03411378]
[1625143713296,18.51988,2130.1,2129.1,0.03411378]
[1625143713499,46.53996455,2130.0,2129.1,0.03411378]
[1625143713596,15.0,2129.9,2129.1,0.03411378]
[1625143713749,3.5209,2129.7,2129.1,0.03411378]
[1625143713846,7.04161,2129.4,2129.1,0.03411378]
[1625143717597,9.38792,2129.7,2129.1,0.03411378]
[1625143717694,7.04049,2129.6,2129.1,0.03411378]
[1625143717898,7.14049,2129.6,2129.1,0.03411378]
[1625143718319,7.04049,2129.6,2129.1,0.03411378]
[1625143718717,32.3931,2130.0,2129.1,0.03411378]
[1625143718818,11.0266,2130.0,2129.1,0.03411378]
[1625143718974,20.8215,2130.2,2129.1,0.03411378]
[1625143719073,20.8215,2130.2,2129.1,0.04208516]
[1625143719171,20.8215,2130.2,2129.1,2.57390293]
[1625143719273,10.6567,2130.2,2129.1,2.57390293]
[1625143720125,17.69506,2130.2,2129.4,7.03843]
[1625143720223,7.03836,2130.2,2129.4,7.03843]
[1625143720424,7.03836,2130.2,2129.1,11.95050155]
[1625143721295,7.03836,2130.2,2129.1,11.9591805]
[1625143722196,7.03836,2130.2,2129.3,7.03873]
[1625143724450,7.03836,2130.2,2129.2,6.1570674]
[1625143724551,7.03836,2130.2,2129.2,4.8423674]
[1625143724701,7.03836,2130.2,2129.2,3.5190674]
[1625143725098,0.08,2130.1,2129.2,3.5190674]
[1625143725300,22.03836,2130.2,2129.2,3.5190674]
[1625143725399,7.03836,2130.2,2129.2,3.5190674]
[1625143725811,22.03836,2130.2,2129.1,9.41868378]
[1625143725913,22.03836,2130.2,2129.1,0.03411378]
[1625143726009,0.12,2130.1,2129.1,0.03411378]
[1625143726260,55.72634455,2130.4,2129.1,0.03411378]
[1625143726659,15.0,2130.3,2129.1,0.03411378]
[1625143727113,55.72634455,2130.4,2129.1,0.03411378]
[1625143727114,7.03991,2129.8,2129.1,0.03411378]
[1625143727412,9.38654,2130.0,2129.1,0.03411378]
[1625143727513,66.23174455,2130.4,2129.1,0.03411378]
[1625143727614,19.89178,2130.4,2129.1,3.55358028]
[1625143727714,19.89178,2130.4,2129.1,6.08539805]
[1625143728664,7.03872,2130.1,2129.2,9.38465]
[1625143730206,7.03872,2130.1,2129.3,7.03884]
[1625143730812,19.89178,2130.4,2129.4,3.519174]
[1625143730911,9.38638,2130.4,2129.4,8.226274]
[1625143731066,6.97223771,2130.5,2129.4,8.226274]
[1625143731314,6.97223771,2130.5,2129.9,7.03652]
[1625143731409,6.97223771,2130.5,2129.9,10.51712]
[1625143731507,6.97223771,2130.5,2129.9,8.01712]
[1625143731910,6.97223771,2130.5,2129.9,10.6901711]
[1625143732213,0.02223771,2130.5,2129.9,10.6901711]
[1625143732759,0.02223771,2130.5,2129.9,14.2078611]
[1625143733012,0.02223771,2130.5,2129.9,9.6713411]
[1625143734102,0.02223771,2130.5,2130.1,3.5176453]
[1625143734202,0.02223771,2130.5,2130.3,7.03532]
[1625143735524,0.02223771,2130.5,2130.3,9.7083711]
[1625143735724,3.771e-05,2130.5,2130.3,9.7083711]
[1625143735827,10.4724,2131.7,2130.4,0.12]
[1625143735929,10.4724,2131.7,2130.4,4.10146554]
[1625143736128,10.4724,2131.7,2130.5,2.6730511]
[1625143736375,21.0786,2131.8,2130.5,2.6730511]
[1625143736527,7.03367,2131.7,2130.8,7.03367]
[1625143736976,10.6882,2131.9,2130.8,9.7067211]
[1625143737180,10.6882,2131.9,2130.9,0.03408504]
[1625143737277,10.6882,2131.9,2130.9,5.73228504]
[1625143737525,0.06,2131.8,2130.9,5.73228504]
[1625143737828,10.6882,2131.9,2130.9,5.73228504]
[1625143738128,17.72125,2131.9,2130.9,12.76533504]
[1625143739314,17.67125,2131.9,2130.9,12.76533504]
[1625143742128,17.67125,2131.9,2131.0,3.5162685]
[1625143742782,17.67125,2131.9,2130.9,4.59718504]
[1625143743033,0.16,2131.8,2130.9,4.59718504]
[1625143743432,10.6382,2131.9,2130.9,4.59718504]
[1625143743870,10.6382,2131.9,2130.9,5.81838504]
[1625143744173,7.03375,2131.7,2130.9,5.81838504]
[1625143744924,0.06,2131.6,2130.9,5.81838504]
[1625143745031,0.01,2131.6,2130.9,5.81838504]
[1625143745273,25.6382,2131.9,2130.9,5.81838504]
[1625143745472,10.6382,2131.9,2130.9,5.81838504]
[1625143745775,7.03422,2131.5,2130.9,5.81838504]
[1625143746006,46.33996455,2131.5,2130.9,4.59718504]
[1625143746093,46.33996455,2131.5,2130.9,0.03408504]
[1625143746194,15.0,2131.4,2130.9,0.03408504]
[1625143746539,15.04,2131.4,2130.9,0.03408504]
[1625143746749,0.12,2131.3,2130.9,0.03408504]
[1625143747198,0.12,2131.3,2130.0,4.6895826]
[1625143747199,46.33996455,2131.2,2130.0,4.6895826]
[1625143747344,15.2,2131.1,2129.7,32.0938]
[1625143747442,15.30348496,2131.1,2129.7,32.0938]
[1625143747541,15.30348496,2131.1,2129.7,35.6122605]
[1625143747640,0.06,2131.0,2129.7,35.6122605]
[1625143747839,0.17336641,2131.0,2129.7,25.0981605]
[1625143749183,7.03773,2130.4,2129.7,25.0981605]
[1625143749282,7.03773,2130.4,2129.7,3.5184605]
[1625143749386,22.03773,2130.4,2129.2,2.50166194]
[1625143749538,0.41582794,2130.3,2128.3,2.50166194]
[1625143749635,0.41582794,2130.3,2128.6,2.0]